{"text_format":"1","workbook":"xlsx","n_sheets":2,"sheets":["Numérologie Matrice","Annexe"],"not_rendered":{"charts":0,"images":0,"macros":1,"external_links":0,"defined_names":0,"comments":0,"pivot_tables":0},"unopened":[],"bounds":{"document_bytes":16777216,"sheet_cells":100000,"rows_first":2000,"rows_last":500,"rows_between":2000,"halvings":0,"cell_chars":16384,"cell_head_chars":4096},"cells_cut":0,"cells_raw":0,"read":"whole","date_system":"1900"}

{"sheet":"Numérologie Matrice","index":0,"n_rows":61,"n_cols":48,"rows_kept":61,"cut":false,"hidden":false,"merged":[[50,0,51,14],[50,31,51,38],[56,0,57,14],[56,31,57,38],[32,0,33,14],[32,31,33,38],[38,0,39,14],[38,31,39,38],[44,0,45,14],[44,31,45,38],[26,0,27,14],[26,31,27,38],[0,0,2,51],[3,17,5,33],[14,47,15,51],[14,0,15,14],[14,31,15,38],[7,0,12,1],[7,25,12,26],[16,0,16,2],[17,0,17,2],[18,0,18,2],[20,0,21,14],[20,31,21,38]]}
["LE TEMPLE DES ENERGIES"]
[]
[]
[null,null,null,null,null,null,null,null,null,null,null,null,null,null,null,null,null,"NUMEROLOGIE"]
[]
[]
[]
["PRENOM",null,null,null,null,null,null,null,null,null,null,null,null,null,null,null,null,null,null,null,null,null,null,null,null,"NOM"]
[]
[]
[]
[]
[]
[]
["CHEMIN DE VIE",null,null,null,null,null,null,null,null,null,null,null,null,null,null,null,null,null,null,null,null,null,null,null,null,null,null,null,null,null,null,{"$f":"IFERROR(VLOOKUP(AV19,Annexe!$E$1:'Annexe'!$F$33,2,FALSE),\"\")","v":""},null,null,null,null,null,null,null,null,null,null,null,null,null," ",null,"TOTAL"]
[]
["JOUR"]
["MOIS",null,null,null,null,null,{"$f":"SUM(D17:D19)","v":0}]
["ANNE",null,null,null,null,null,null,null,null,null,null,null,null,null,null,null,null,null,null,null,null,null,null,null,null,null,null,null,null,null,null,null,null,null,null,null,null,null,null,null,null,null,null,null,null,null,null,{"$f":"SUM(VALUE(MID(SUBSTITUTE(G18,\"+\",\"\")*1,ROW($A$1:OFFSET($A$1,LEN(SUBSTITUTE(G18,\"+\",\"\")*1)-1,,,)),1)))","v":0}]
[]
["DE BASE",null,null,null,null,null,null,null,null,null,null,null,null,null,null,null,null,null,null,null,null,null,null,null,null,null,null,null,null,null,null,{"$f":"IFERROR(VLOOKUP(AV25,Annexe!$E$1:'Annexe'!$F$33,2,FALSE),\"\")","v":""}]
[]
[]
[]
[{"$f":"IFERROR(VLOOKUP(A24,Annexe!$A$1:'Annexe'!$B$56,2,FALSE),\"\")","v":""},{"$f":"IFERROR(VLOOKUP(B24,Annexe!$A$1:'Annexe'!$B$56,2,FALSE),\"\")","v":""},{"$f":"IFERROR(VLOOKUP(C24,Annexe!$A$1:'Annexe'!$B$56,2,FALSE),\"\")","v":""},{"$f":"IFERROR(VLOOKUP(D24,Annexe!$A$1:'Annexe'!$B$56,2,FALSE),\"\")","v":""},{"$f":"IFERROR(VLOOKUP(E24,Annexe!$A$1:'Annexe'!$B$56,2,FALSE),\"\")","v":""},{"$f":"IFERROR(VLOOKUP(F24,Annexe!$A$1:'Annexe'!$B$56,2,FALSE),\"\")","v":""},{"$f":"IFERROR(VLOOKUP(G24,Annexe!$A$1:'Annexe'!$B$56,2,FALSE),\"\")","v":""},{"$f":"IFERROR(VLOOKUP(H24,Annexe!$A$1:'Annexe'!$B$56,2,FALSE),\"\")","v":""},{"$f":"IFERROR(VLOOKUP(I24,Annexe!$A$1:'Annexe'!$B$56,2,FALSE),\"\")","v":""},{"$f":"IFERROR(VLOOKUP(J24,Annexe!$A$1:'Annexe'!$B$56,2,FALSE),\"\")","v":""},{"$f":"IFERROR(VLOOKUP(K24,Annexe!$A$1:'Annexe'!$B$56,2,FALSE),\"\")","v":""},{"$f":"IFERROR(VLOOKUP(L24,Annexe!$A$1:'Annexe'!$B$56,2,FALSE),\"\")","v":""},{"$f":"IFERROR(VLOOKUP(M24,Annexe!$A$1:'Annexe'!$B$56,2,FALSE),\"\")","v":""},{"$f":"IFERROR(VLOOKUP(N24,Annexe!$A$1:'Annexe'!$B$56,2,FALSE),\"\")","v":""},{"$f":"IFERROR(VLOOKUP(O24,Annexe!$A$1:'Annexe'!$B$56,2,FALSE),\"\")","v":""},{"$f":"IFERROR(VLOOKUP(P24,Annexe!$A$1:'Annexe'!$B$56,2,FALSE),\"\")","v":""},{"$f":"IFERROR(VLOOKUP(Q24,Annexe!$A$1:'Annexe'!$B$56,2,FALSE),\"\")","v":""},{"$f":"IFERROR(VLOOKUP(R24,Annexe!$A$1:'Annexe'!$B$56,2,FALSE),\"\")","v":""},{"$f":"IFERROR(VLOOKUP(S24,Annexe!$A$1:'Annexe'!$B$56,2,FALSE),\"\")","v":""},{"$f":"IFERROR(VLOOKUP(T24,Annexe!$A$1:'Annexe'!$B$56,2,FALSE),\"\")","v":""},{"$f":"IFERROR(VLOOKUP(U24,Annexe!$A$1:'Annexe'!$B$56,2,FALSE),\"\")","v":""},{"$f":"IFERROR(VLOOKUP(V24,Annexe!$A$1:'Annexe'!$B$56,2,FALSE),\"\")","v":""},{"$f":"IFERROR(VLOOKUP(W24,Annexe!$A$1:'Annexe'!$B$56,2,FALSE),\"\")","v":""},{"$f":"IFERROR(VLOOKUP(X24,Annexe!$A$1:'Annexe'!$B$56,2,FALSE),\"\")","v":""},{"$f":"IFERROR(VLOOKUP(Y24,Annexe!$A$1:'Annexe'!$B$56,2,FALSE),\"\")","v":""},{"$f":"IFERROR(VLOOKUP(Z24,Annexe!$A$1:'Annexe'!$B$56,2,FALSE),\"\")","v":""},{"$f":"IFERROR(VLOOKUP(AA24,Annexe!$A$1:'Annexe'!$B$56,2,FALSE),\"\")","v":""}," ",null,null,null,null,null,null,null,null,null,null,null,null,null,null,null,null,null,null,{"$f":"SUM(A25:AA25)","v":0},{"$f":"IF(SUM(A25:AA25)<34,SUM(A25:AA25),VALUE(LEFT(SUM(A25:AA25),1)+VALUE(MID(SUM(A25:AA25),2,1))+IF(LEN(SUM(A25:AA25))=3,VALUE(MID(SUM(A25:AA25),3,1)))))","v":0}]
[]
["DE SOMMET",null,null,null,null,null,null,null,null,null,null,null,null,null,null,null,null,null,null,null,null,null,null,null,null,null,null,null,null,null,null,{"$f":"IFERROR(VLOOKUP(AV31,Annexe!$E$1:'Annexe'!$F$33,2,FALSE),\"\")","v":""}]
[]
[]
[]
[{"$f":"IFERROR(VLOOKUP(A30,Annexe!$A$1:'Annexe'!$B$56,2,FALSE),\"\")","v":""},{"$f":"IFERROR(VLOOKUP(B30,Annexe!$A$1:'Annexe'!$B$56,2,FALSE),\"\")","v":""},{"$f":"IFERROR(VLOOKUP(C30,Annexe!$A$1:'Annexe'!$B$56,2,FALSE),\"\")","v":""},{"$f":"IFERROR(VLOOKUP(D30,Annexe!$A$1:'Annexe'!$B$56,2,FALSE),\"\")","v":""},{"$f":"IFERROR(VLOOKUP(E30,Annexe!$A$1:'Annexe'!$B$56,2,FALSE),\"\")","v":""},{"$f":"IFERROR(VLOOKUP(F30,Annexe!$A$1:'Annexe'!$B$56,2,FALSE),\"\")","v":""},{"$f":"IFERROR(VLOOKUP(G30,Annexe!$A$1:'Annexe'!$B$56,2,FALSE),\"\")","v":""},{"$f":"IFERROR(VLOOKUP(H30,Annexe!$A$1:'Annexe'!$B$56,2,FALSE),\"\")","v":""},{"$f":"IFERROR(VLOOKUP(I30,Annexe!$A$1:'Annexe'!$B$56,2,FALSE),\"\")","v":""},{"$f":"IFERROR(VLOOKUP(J30,Annexe!$A$1:'Annexe'!$B$56,2,FALSE),\"\")","v":""},{"$f":"IFERROR(VLOOKUP(K30,Annexe!$A$1:'Annexe'!$B$56,2,FALSE),\"\")","v":""},{"$f":"IFERROR(VLOOKUP(L30,Annexe!$A$1:'Annexe'!$B$56,2,FALSE),\"\")","v":""},{"$f":"IFERROR(VLOOKUP(M30,Annexe!$A$1:'Annexe'!$B$56,2,FALSE),\"\")","v":""},{"$f":"IFERROR(VLOOKUP(N30,Annexe!$A$1:'Annexe'!$B$56,2,FALSE),\"\")","v":""},{"$f":"IFERROR(VLOOKUP(O30,Annexe!$A$1:'Annexe'!$B$56,2,FALSE),\"\")","v":""},{"$f":"IFERROR(VLOOKUP(P30,Annexe!$A$1:'Annexe'!$B$56,2,FALSE),\"\")","v":""},{"$f":"IFERROR(VLOOKUP(Q30,Annexe!$A$1:'Annexe'!$B$56,2,FALSE),\"\")","v":""},{"$f":"IFERROR(VLOOKUP(R30,Annexe!$A$1:'Annexe'!$B$56,2,FALSE),\"\")","v":""},{"$f":"IFERROR(VLOOKUP(S30,Annexe!$A$1:'Annexe'!$B$56,2,FALSE),\"\")","v":""},{"$f":"IFERROR(VLOOKUP(T30,Annexe!$A$1:'Annexe'!$B$56,2,FALSE),\"\")","v":""},{"$f":"IFERROR(VLOOKUP(U30,Annexe!$A$1:'Annexe'!$B$56,2,FALSE),\"\")","v":""},{"$f":"IFERROR(VLOOKUP(V30,Annexe!$A$1:'Annexe'!$B$56,2,FALSE),\"\")","v":""},{"$f":"IFERROR(VLOOKUP(W30,Annexe!$A$1:'Annexe'!$B$56,2,FALSE),\"\")","v":""},{"$f":"IFERROR(VLOOKUP(X30,Annexe!$A$1:'Annexe'!$B$56,2,FALSE),\"\")","v":""},{"$f":"IFERROR(VLOOKUP(Y30,Annexe!$A$1:'Annexe'!$B$56,2,FALSE),\"\")","v":""},{"$f":"IFERROR(VLOOKUP(Z30,Annexe!$A$1:'Annexe'!$B$56,2,FALSE),\"\")","v":""},{"$f":"IFERROR(VLOOKUP(AA30,Annexe!$A$1:'Annexe'!$B$56,2,FALSE),\"\")","v":""},null,null,null,null,null,null,null,null,null,null,null,null,null,null,null,null,null,null,null,{"$f":"SUM(A31:AA31)","v":0},{"$f":"IF(SUM(A31:AA31)<34,SUM(A31:AA31),VALUE(LEFT(SUM(A31:AA31),1)+VALUE(MID(SUM(A31:AA31),2,1))+IF(LEN(SUM(A31:AA31))=3,VALUE(MID(SUM(A31:AA31),3,1)))))","v":0}]
[]
["D'APPEL",null,null,null,null,null,null,null,null,null,null,null,null,null,null,null,null,null,null,null,null,null,null,null,null,null,null,null,null,null,null,{"$f":"IFERROR(VLOOKUP(AV37,Annexe!$E$1:'Annexe'!$F$33,2,FALSE),\"\")","v":""}]
[]
[]
[]
[{"$f":"IFERROR(VLOOKUP(A36,Annexe!$A$1:'Annexe'!$B$56,2,FALSE),\"\")","v":""},{"$f":"IFERROR(VLOOKUP(B36,Annexe!$A$1:'Annexe'!$B$56,2,FALSE),\"\")","v":""},{"$f":"IFERROR(VLOOKUP(C36,Annexe!$A$1:'Annexe'!$B$56,2,FALSE),\"\")","v":""},{"$f":"IFERROR(VLOOKUP(D36,Annexe!$A$1:'Annexe'!$B$56,2,FALSE),\"\")","v":""},{"$f":"IFERROR(VLOOKUP(E36,Annexe!$A$1:'Annexe'!$B$56,2,FALSE),\"\")","v":""},{"$f":"IFERROR(VLOOKUP(F36,Annexe!$A$1:'Annexe'!$B$56,2,FALSE),\"\")","v":""},{"$f":"IFERROR(VLOOKUP(G36,Annexe!$A$1:'Annexe'!$B$56,2,FALSE),\"\")","v":""},{"$f":"IFERROR(VLOOKUP(H36,Annexe!$A$1:'Annexe'!$B$56,2,FALSE),\"\")","v":""},{"$f":"IFERROR(VLOOKUP(I36,Annexe!$A$1:'Annexe'!$B$56,2,FALSE),\"\")","v":""},{"$f":"IFERROR(VLOOKUP(J36,Annexe!$A$1:'Annexe'!$B$56,2,FALSE),\"\")","v":""},{"$f":"IFERROR(VLOOKUP(K36,Annexe!$A$1:'Annexe'!$B$56,2,FALSE),\"\")","v":""},{"$f":"IFERROR(VLOOKUP(L36,Annexe!$A$1:'Annexe'!$B$56,2,FALSE),\"\")","v":""},{"$f":"IFERROR(VLOOKUP(M36,Annexe!$A$1:'Annexe'!$B$56,2,FALSE),\"\")","v":""},{"$f":"IFERROR(VLOOKUP(N36,Annexe!$A$1:'Annexe'!$B$56,2,FALSE),\"\")","v":""},{"$f":"IFERROR(VLOOKUP(O36,Annexe!$A$1:'Annexe'!$B$56,2,FALSE),\"\")","v":""},{"$f":"IFERROR(VLOOKUP(P36,Annexe!$A$1:'Annexe'!$B$56,2,FALSE),\"\")","v":""},{"$f":"IFERROR(VLOOKUP(Q36,Annexe!$A$1:'Annexe'!$B$56,2,FALSE),\"\")","v":""},{"$f":"IFERROR(VLOOKUP(R36,Annexe!$A$1:'Annexe'!$B$56,2,FALSE),\"\")","v":""},{"$f":"IFERROR(VLOOKUP(S36,Annexe!$A$1:'Annexe'!$B$56,2,FALSE),\"\")","v":""},{"$f":"IFERROR(VLOOKUP(T36,Annexe!$A$1:'Annexe'!$B$56,2,FALSE),\"\")","v":""},{"$f":"IFERROR(VLOOKUP(U36,Annexe!$A$1:'Annexe'!$B$56,2,FALSE),\"\")","v":""},{"$f":"IFERROR(VLOOKUP(V36,Annexe!$A$1:'Annexe'!$B$56,2,FALSE),\"\")","v":""},{"$f":"IFERROR(VLOOKUP(W36,Annexe!$A$1:'Annexe'!$B$56,2,FALSE),\"\")","v":""},{"$f":"IFERROR(VLOOKUP(X36,Annexe!$A$1:'Annexe'!$B$56,2,FALSE),\"\")","v":""},{"$f":"IFERROR(VLOOKUP(Y36,Annexe!$A$1:'Annexe'!$B$56,2,FALSE),\"\")","v":""},{"$f":"IFERROR(VLOOKUP(Z36,Annexe!$A$1:'Annexe'!$B$56,2,FALSE),\"\")","v":""},{"$f":"IFERROR(VLOOKUP(AA36,Annexe!$A$1:'Annexe'!$B$56,2,FALSE),\"\")","v":""},null,null,null,null,null,null,null,null,null,null,null,null,null,null,null,null,null,null,null,{"$f":"SUM(A37:AA37)","v":0},{"$f":"IF(SUM(A37:AA37)<34,SUM(A37:AA37),VALUE(LEFT(SUM(A37:AA37),1)+VALUE(MID(SUM(A37:AA37),2,1))+IF(LEN(SUM(A37:AA37))=3,VALUE(MID(SUM(A37:AA37),3,1)))))","v":0}]
[]
["DE PERSONNALITE",null,null,null,null,null,null,null,null,null,null,null,null,null,null,null,null,null,null,null,null,null,null,null,null,null,null,null,null,null,null,{"$f":"IFERROR(VLOOKUP(AV43,Annexe!$E$1:'Annexe'!$F$33,2,FALSE),\"\")","v":""}]
[]
[]
[]
[{"$f":"IFERROR(VLOOKUP(A42,Annexe!$A$1:'Annexe'!$B$56,2,FALSE),\"\")","v":""},{"$f":"IFERROR(VLOOKUP(B42,Annexe!$A$1:'Annexe'!$B$56,2,FALSE),\"\")","v":""},{"$f":"IFERROR(VLOOKUP(C42,Annexe!$A$1:'Annexe'!$B$56,2,FALSE),\"\")","v":""},{"$f":"IFERROR(VLOOKUP(D42,Annexe!$A$1:'Annexe'!$B$56,2,FALSE),\"\")","v":""},{"$f":"IFERROR(VLOOKUP(E42,Annexe!$A$1:'Annexe'!$B$56,2,FALSE),\"\")","v":""},{"$f":"IFERROR(VLOOKUP(F42,Annexe!$A$1:'Annexe'!$B$56,2,FALSE),\"\")","v":""},{"$f":"IFERROR(VLOOKUP(G42,Annexe!$A$1:'Annexe'!$B$56,2,FALSE),\"\")","v":""},{"$f":"IFERROR(VLOOKUP(H42,Annexe!$A$1:'Annexe'!$B$56,2,FALSE),\"\")","v":""},{"$f":"IFERROR(VLOOKUP(I42,Annexe!$A$1:'Annexe'!$B$56,2,FALSE),\"\")","v":""},{"$f":"IFERROR(VLOOKUP(J42,Annexe!$A$1:'Annexe'!$B$56,2,FALSE),\"\")","v":""},{"$f":"IFERROR(VLOOKUP(K42,Annexe!$A$1:'Annexe'!$B$56,2,FALSE),\"\")","v":""},{"$f":"IFERROR(VLOOKUP(L42,Annexe!$A$1:'Annexe'!$B$56,2,FALSE),\"\")","v":""},{"$f":"IFERROR(VLOOKUP(M42,Annexe!$A$1:'Annexe'!$B$56,2,FALSE),\"\")","v":""},{"$f":"IFERROR(VLOOKUP(N42,Annexe!$A$1:'Annexe'!$B$56,2,FALSE),\"\")","v":""},{"$f":"IFERROR(VLOOKUP(O42,Annexe!$A$1:'Annexe'!$B$56,2,FALSE),\"\")","v":""},{"$f":"IFERROR(VLOOKUP(P42,Annexe!$A$1:'Annexe'!$B$56,2,FALSE),\"\")","v":""},{"$f":"IFERROR(VLOOKUP(Q42,Annexe!$A$1:'Annexe'!$B$56,2,FALSE),\"\")","v":""},{"$f":"IFERROR(VLOOKUP(R42,Annexe!$A$1:'Annexe'!$B$56,2,FALSE),\"\")","v":""},{"$f":"IFERROR(VLOOKUP(S42,Annexe!$A$1:'Annexe'!$B$56,2,FALSE),\"\")","v":""},{"$f":"IFERROR(VLOOKUP(T42,Annexe!$A$1:'Annexe'!$B$56,2,FALSE),\"\")","v":""},{"$f":"IFERROR(VLOOKUP(U42,Annexe!$A$1:'Annexe'!$B$56,2,FALSE),\"\")","v":""},{"$f":"IFERROR(VLOOKUP(V42,Annexe!$A$1:'Annexe'!$B$56,2,FALSE),\"\")","v":""},{"$f":"IFERROR(VLOOKUP(W42,Annexe!$A$1:'Annexe'!$B$56,2,FALSE),\"\")","v":""},{"$f":"IFERROR(VLOOKUP(X42,Annexe!$A$1:'Annexe'!$B$56,2,FALSE),\"\")","v":""},{"$f":"IFERROR(VLOOKUP(Y42,Annexe!$A$1:'Annexe'!$B$56,2,FALSE),\"\")","v":""},{"$f":"IFERROR(VLOOKUP(Z42,Annexe!$A$1:'Annexe'!$B$56,2,FALSE),\"\")","v":""},{"$f":"IFERROR(VLOOKUP(AA42,Annexe!$A$1:'Annexe'!$B$56,2,FALSE),\"\")","v":""},null,null,null,null,null,null,null,null,null,null,null,null,null,null,null,null,null,null,null,{"$f":"SUM(A43:AA43)","v":0},0]
[]
["D'EXPRESSION",null,null,null,null,null,null,null,null,null,null,null,null,null,null,null,null,null,null,null,null,null,null,null,null,null,null,null,null,null,null,{"$f":"IFERROR(VLOOKUP(AV48,Annexe!$E$1:'Annexe'!$F$33,2,FALSE),\"\")","v":""}]
[]
[]
[{"$f":"AU37","v":0},{"$f":"AU43","v":0},null,null,null,null,null,null,null,null,null,null,null,null,null,null,null,null,null,null,null,null,null,null,null,null,null,null,null,null,null,null,null,null,null,null,null,null,null,null,null,null,null,null,null,null,{"$f":"SUM(A48:AB48)","v":0},0]
[]
[]
["DE TOUCHE",null,null,null,null,null,null,null,null,null,null,null,null,null,null,null,null,null,null,null,null,null,null,null,null,null,null,null,null,null,null,{"$f":"IFERROR(VLOOKUP(AV54,Annexe!$E$1:'Annexe'!$F$33,2,FALSE),\"\")","v":""}]
[]
[]
[{"$f":"AU25","v":0},{"$f":"AU31","v":0},{"$f":"AU37","v":0},{"$f":"AU43","v":0},{"$f":"AU48","v":0},null,null,null,null,null,null,null,null,null,null,null,null,null,null,null,null,null,null,null,null,null,null,null,null,null,null,null,null,null,null,null,null,null,null,null,null,null,null,null,null,null,{"$f":"SUM(A54:AA54)","v":0},0]
[]
[]
["DE VŒUX",null,null,null,null,null,null,null,null,null,null,null,null,null,null,null,null,null,null,null,null,null,null,null,null,null,null,null,null,null,null,{"$f":"IFERROR(VLOOKUP(AV61,Annexe!$E$1:'Annexe'!$F$33,2,FALSE),\"\")","v":""}]
[]
[]
[]
[{"$f":"IFERROR(VLOOKUP(A60,Annexe!$A$1:'Annexe'!$B$56,2,FALSE),\"\")","v":""},{"$f":"IFERROR(VLOOKUP(B60,Annexe!$A$1:'Annexe'!$B$56,2,FALSE),\"\")","v":""},{"$f":"IFERROR(VLOOKUP(C60,Annexe!$A$1:'Annexe'!$B$56,2,FALSE),\"\")","v":""},{"$f":"IFERROR(VLOOKUP(D60,Annexe!$A$1:'Annexe'!$B$56,2,FALSE),\"\")","v":""},{"$f":"IFERROR(VLOOKUP(E60,Annexe!$A$1:'Annexe'!$B$56,2,FALSE),\"\")","v":""},{"$f":"IFERROR(VLOOKUP(F60,Annexe!$A$1:'Annexe'!$B$56,2,FALSE),\"\")","v":""},{"$f":"IFERROR(VLOOKUP(G60,Annexe!$A$1:'Annexe'!$B$56,2,FALSE),\"\")","v":""},{"$f":"IFERROR(VLOOKUP(H60,Annexe!$A$1:'Annexe'!$B$56,2,FALSE),\"\")","v":""},{"$f":"IFERROR(VLOOKUP(I60,Annexe!$A$1:'Annexe'!$B$56,2,FALSE),\"\")","v":""},{"$f":"IFERROR(VLOOKUP(J60,Annexe!$A$1:'Annexe'!$B$56,2,FALSE),\"\")","v":""},{"$f":"IFERROR(VLOOKUP(K60,Annexe!$A$1:'Annexe'!$B$56,2,FALSE),\"\")","v":""},{"$f":"IFERROR(VLOOKUP(L60,Annexe!$A$1:'Annexe'!$B$56,2,FALSE),\"\")","v":""},{"$f":"IFERROR(VLOOKUP(M60,Annexe!$A$1:'Annexe'!$B$56,2,FALSE),\"\")","v":""},{"$f":"IFERROR(VLOOKUP(N60,Annexe!$A$1:'Annexe'!$B$56,2,FALSE),\"\")","v":""},{"$f":"IFERROR(VLOOKUP(O60,Annexe!$A$1:'Annexe'!$B$56,2,FALSE),\"\")","v":""},{"$f":"IFERROR(VLOOKUP(P60,Annexe!$A$1:'Annexe'!$B$56,2,FALSE),\"\")","v":""},{"$f":"IFERROR(VLOOKUP(Q60,Annexe!$A$1:'Annexe'!$B$56,2,FALSE),\"\")","v":""},{"$f":"IFERROR(VLOOKUP(R60,Annexe!$A$1:'Annexe'!$B$56,2,FALSE),\"\")","v":""},{"$f":"IFERROR(VLOOKUP(S60,Annexe!$A$1:'Annexe'!$B$56,2,FALSE),\"\")","v":""},{"$f":"IFERROR(VLOOKUP(T60,Annexe!$A$1:'Annexe'!$B$56,2,FALSE),\"\")","v":""},{"$f":"IFERROR(VLOOKUP(U60,Annexe!$A$1:'Annexe'!$B$56,2,FALSE),\"\")","v":""},{"$f":"IFERROR(VLOOKUP(V60,Annexe!$A$1:'Annexe'!$B$56,2,FALSE),\"\")","v":""},{"$f":"IFERROR(VLOOKUP(W60,Annexe!$A$1:'Annexe'!$B$56,2,FALSE),\"\")","v":""},{"$f":"IFERROR(VLOOKUP(X60,Annexe!$A$1:'Annexe'!$B$56,2,FALSE),\"\")","v":""},{"$f":"IFERROR(VLOOKUP(Y60,Annexe!$A$1:'Annexe'!$B$56,2,FALSE),\"\")","v":""},{"$f":"IFERROR(VLOOKUP(Z60,Annexe!$A$1:'Annexe'!$B$56,2,FALSE),\"\")","v":""},{"$f":"IFERROR(VLOOKUP(AA60,Annexe!$A$1:'Annexe'!$B$56,2,FALSE),\"\")","v":""},null,null,null,null,null,null,null,null,null,null,null,null,null,null,null,null,null,null,null,{"$f":"SUM(A61:AA61)","v":0},0]

{"sheet":"Annexe","index":1,"n_rows":57,"n_cols":6,"rows_kept":57,"cut":false,"hidden":false,"merged":[]}
["A",1,null,null,1,"QUARTZ ROSE"]
["B",2,null,null,2,"JASPE ROUGE"]
["C",3,null,null,3,"CALCEDOINE"]
["D",4,null,null,4,"JADE"]
["E",5,null,null,5,"EMERAUDE"]
["F",6,null,null,6,"GRENAT"]
["G",7,null,null,7,"CITRINE"]
["H",8,null,null,8,"OBSIDIENNE"]
["I",9,null,null,9,"ALGUE MARINE"]
["J",1,null,null,10,"RHODOCROSITE"]
["K",2,null,null,11,"CORNALINE"]
["L",3,null,null,12,"AMBRE"]
["M",4,null,null,13,"HEMATITE"]
["N",5,null,null,14,"AMETHYSTE"]
["O",6,null,null,15,"MALACHITE"]
["P",7,null,null,16,"OPALE"]
["Q",8,null,null,17,"TURQUOISE"]
["R",9,null,null,18,"PIERRE DE LUNE"]
["S",1,null,null,19,"TOPAZE"]
["T",2,null,null,20,"LAPIS LAZULI"]
["U",3,null,null,21,"TOURMALINE"]
["V",4,null,null,22,"CRISTAL DE ROCHE"]
["W",5,null,null,23,"AZURITE"]
["X",6,null,null,24,"AMAZONITE"]
["Y",7,null,null,25,"ŒIL DE TIGRE"]
["Z",8,null,null,26,"PYRITE"]
["À",9,null,null,27,"FLUORITE / FLUORINE"]
["Â",9,null,null,28,"PERLE"]
["Ä",6,null,null,29,"SODALITE"]
["à",9,null,null,30,"QUARTZ FUME"]
["â",9,null,null,31,"SOUFRE"]
["ä",9,null,null,32,"MERCURE"]
["È",1,null,null,33,"SEL"]
["É",1]
["Ê",1]
["Ë",5]
["è",1]
["é",1]
["ê",1]
["ë",5]
["Î",5]
["Ï",9]
["î",5]
["ï",9]
["Ô",6]
["Ö",2]
["ô",6]
["ö",2]
["Ù",3]
["Û",3]
["Ü",8]
["ù",3]
["û",3]
["ü",8]
["Ç",1]
["ç",1]
[{"$f":"LEN(D2)","v":0},{"$f":"SEARCH(\" \",D2)","v":{"$error":"#VALUE!"}}]